bitfinex/quotes_ETHUSD_20220111
["timestamp","ask_amount","ask_price","bid_price","bid_amount"]
[1641874052047,1.33482431,3119.8,3119.4,0.02103166]
[1641874052446,0.3,3119.7,3119.4,0.02103166]
[1641874052648,0.3,3119.7,3119.0,0.02330536]
[1641874053099,3.02530552,3119.7,3119.0,0.02330536]
[1641874053495,3.02530552,3119.7,3119.1,0.93561883]
[1641874053696,0.3,3119.7,3119.1,0.93561883]
[1641874053895,0.3,3119.7,3119.6,0.69232229]
[1641874054098,0.3,3119.7,3119.6,0.64232229]
[1641874054295,0.3,3119.7,3119.6,0.01989482]
[1641874054695,0.3,3119.7,3118.9,0.02387378]
[1641874054896,2.72530552,3119.6,3118.6,0.02557905]
[1641874055495,2.72530552,3119.6,3119.2,0.82761259]
[1641874055701,3.02530552,3119.6,3118.6,0.02557905]
[1641874055899,5.2853287,3119.5,3119.3,0.02160009]
[1641874056096,5.2853287,3119.5,3118.3,1.1502]
[1641874056097,8.75419635,3119.4,3118.6,0.02557905]
[1641874056297,0.08015,3119.3,3118.4,0.0267159]
[1641874056497,1.08015,3119.3,3118.4,0.0267159]
[1641874056764,2.50895,3119.3,3118.1,0.02842117]
[1641874057067,4.55,3119.4,3118.1,0.02842117]
[1641874057267,2.72530552,3119.3,3118.2,1.19903932]
[1641874057466,2.72530552,3119.3,3118.4,0.01252818]
[1641874057766,2.72530552,3119.5,3118.5,0.461]
[1641874057966,2.72530552,3119.5,3118.5,0.48714747]
[1641874058368,2.72530552,3119.5,3118.7,0.69469946]
[1641874058566,2.72530552,3119.5,3118.8,0.461]
[1641874058764,2.72530552,3119.9,3118.8,0.4854422]
[1641874058964,0.08014,3119.8,3118.9,0.02387378]
[1641874059165,0.08014,3119.8,3119.0,0.461]
[1641874059364,1.183,3120.1,3119.9,0.75865615]
[1641874059365,0.08014,3120.0,3119.9,0.75865615]
[1641874059566,5.38014,3120.0,3119.9,0.75865615]
[1641874059766,5.38014,3120.0,3119.9,0.01818955]
[1641874059966,7.87464,3120.0,3119.9,0.01818955]
[1641874060166,7.87464,3120.0,3119.1,0.02273693]
[1641874060388,5.34766001,3119.9,3118.8,0.0244422]
[1641874060589,0.08014,3119.8,3118.8,0.0244422]
[1641874060792,0.08014,3119.8,3118.9,1.15656985]
[1641874060993,0.08014,3119.9,3119.7,0.93330546]
[1641874061392,0.08014,3119.9,3119.8,0.01875797]
[1641874061590,5.8,3119.8,3118.5,0.42975797]
[1641874061789,5.51381378,3119.9,3118.5,0.42975797]
[1641874061790,4.30593977,3119.7,3118.5,0.42975797]
[1641874061991,4.30593977,3119.7,3118.6,0.00682108]
[1641874061992,4.52579977,3119.7,3118.6,0.00682108]
[1641874062197,0.08014,3119.6,3118.6,0.00682108]
[1641874062391,0.08014,3119.6,3119.3,0.90995171]
[1641874062792,0.08014,3119.7,3119.4,0.00227369]
[1641874065344,0.08014,3119.7,3119.0,0.00454739]
[1641874065743,0.08014,3119.7,3118.9,0.60176052]
[1641874066044,0.00341054,3119.6,3118.9,0.60176052]
[1641874066246,0.08014,3119.5,3118.5,0.42975797]
[1641874066443,0.08298212,3119.5,3118.5,0.42975797]
[1641874066643,0.0022737,3119.4,3118.6,0.00227369]
[1641874066846,0.08014,3119.3,3118.6,0.00227369]
[1641874067044,0.08184527,3119.3,3118.6,0.00227369]
[1641874067244,0.00113685,3119.2,3119.1,0.01921821]
[1641874067444,2.93127685,3119.2,3119.1,0.01921821]
[1641874067646,3.93127685,3119.2,3119.1,0.01921821]
[1641874070390,5.14337685,3119.2,3119.1,0.01921821]
[1641874070591,4.14337685,3119.2,3119.1,0.01921821]
[1641874071291,4.06323685,3119.2,3119.1,0.01921821]
[1641874071741,4.14337685,3119.2,3119.1,0.01921821]
[1641874072048,5.9,3119.1,3118.6,0.00227369]
[1641874072245,0.08014,3119.0,3118.6,0.00227369]
[1641874072439,0.08014,3119.0,3117.9,0.00625266]
[1641874072642,0.08014,3119.0,3118.0,0.00568423]
[1641874072842,0.08014,3119.0,3117.6,0.00795793]
[1641874073041,1.27850602,3118.9,3117.6,0.00795793]
[1641874073242,0.08017,3118.8,3117.6,0.00795793]
[1641874073843,0.08017,3118.8,3118.3,0.86626748]
[1641874074343,0.08017,3118.8,3118.4,0.00341054]
[1641874074544,1.38015,3119.0,3118.4,0.00341054]
[1641874074943,0.08015,3119.0,3118.4,0.00341054]
[1641874075397,8.04878685,3119.2,3118.4,3.972633]
[1641874075695,7.96863685,3119.2,3118.4,3.972633]
[1641874075903,7.96863685,3119.2,3118.5,0.00284211]
[1641874076095,0.00113685,3119.2,3118.5,0.00284211]
[1641874077399,0.00495866,3119.2,3118.8,0.71698576]
[1641874078598,0.08014,3119.1,3118.8,0.71698576]
[1641874078800,2.80629084,3119.1,3118.8,0.71698576]
[1641874079641,0.08014,3119.1,3118.8,0.71698576]
[1641874080641,0.00495866,3119.2,3118.8,0.71698576]
[1641874081745,0.00495866,3119.2,3118.8,0.46698576]
[1641874082343,0.00392793,3119.1,3119.0,0.00960335]
[1641874084596,5.93406793,3119.1,3119.0,0.00960335]
[1641874085399,8.66029817,3119.1,3119.0,0.00960335]
[1641874086195,9.66029817,3119.1,3119.0,0.00960335]
[1641874087242,8.66029817,3119.1,3118.8,0.81874243]
[1641874088242,2.72623024,3119.0,3118.8,0.81874243]
[1641874088846,0.3,3118.9,3118.5,0.00284211]
[1641874089043,0.08015,3118.8,3118.5,0.00284211]
[1641874089243,0.08015,3118.8,3117.6,0.00795793]
[1641874089444,2.80638024,3118.8,3117.6,0.00795793]
[1641874089647,2.80638024,3118.8,3117.7,0.0073895]
[1641874089843,1.0,3118.7,3117.6,0.00795793]
[1641874090043,1.33515174,3118.4,3118.0,0.74072749]
[1641874090497,1.33515174,3118.4,3118.1,0.00511581]
[1641874092395,1.33907508,3118.4,3118.3,0.00843612]
[1641874092596,1.72935897,3118.4,3118.3,0.00843612]
[1641874092798,1.72935897,3118.4,3118.3,0.01241508]
[1641874092998,4.53603811,3118.4,3118.3,0.01241508]
[1641874093203,6.98603811,3118.4,3118.3,0.01241508]
[1641874093597,7.98603811,3118.4,3118.3,0.01241508]
[1641874093998,5.53603811,3118.4,3118.3,0.01241508]
[1641874096746,9.95604807,3118.4,3118.3,0.01241508]
[1641874097143,9.95445807,3118.4,3118.3,0.01241508]
[1641874097347,10.25525111,3118.4,3118.3,0.01241508]
[1641874097544,9.95525111,3118.4,3118.3,0.01241508]
[1641874097746,10.25525111,3118.4,3118.3,0.01241508]
[1641874098201,9.95525111,3118.4,3118.3,0.01241508]
[1641874098601,10.25525111,3118.4,3118.3,0.01241508]
[1641874098904,9.76669368,3118.4,3118.3,0.01241508]
[1641874099303,9.76558368,3118.4,3118.3,0.01241508]
[1641874099506,9.73470612,3118.4,3118.3,0.01241508]
[1641874099707,9.98442676,3118.4,3118.3,0.01241508]
[1641874099909,9.69463397,3118.4,3118.3,0.01241508]
[1641874100106,9.76029837,3118.4,3118.3,0.01241508]
[1641874100305,9.75679837,3118.4,3118.3,0.01241508]
[1641874100906,5.51780811,3118.4,3118.3,0.01241508]
[1641874101107,5.81780811,3118.4,3118.3,0.01241508]
[1641874101307,5.51780811,3118.4,3118.3,0.01241508]
[1641874103949,3.2,3118.3,3117.9,0.78582139]
[1641874104149,4.28017,3118.3,3117.9,0.78582139]
[1641874104348,4.28017,3118.3,3118.0,0.00170527]
[1641874104552,2.72650914,3118.2,3118.0,0.00170527]
[1641874104951,2.72650914,3118.2,3117.3,0.00568424]
[1641874105597,2.72650914,3118.2,3117.8,0.79510624]
[1641874105897,2.72650914,3118.2,3117.9,3.59173355]
[1641874106098,2.72650914,3118.2,3117.9,4.05273355]
[1641874106704,3.8611,3118.7,3118.6,0.84832717]
[1641874106900,5.16279498,3118.9,3117.9,4.05273355]
[1641874107099,0.00170527,3118.6,3117.9,0.4632737]
[1641874107299,0.00395827,3118.1,3117.9,0.4632737]
[1641874107999,0.00395827,3118.1,3117.9,1.22092613]
[1641874110041,0.00395827,3118.1,3118.0,3.60956284]
[1641874110243,0.00395827,3118.1,3117.9,1.22092613]
[1641874110642,0.00395827,3118.1,3118.0,3.737424]
[1641874110840,0.00395827,3118.1,3118.0,3.60379847]
[1641874111043,0.00395827,3118.1,3118.0,3.64069018]
[1641874111443,0.00395827,3118.1,3118.0,4.10169018]
[1641874112442,0.00113685,3118.5,3118.0,4.11124045]
[1641874112893,0.00113685,3118.5,3118.1,0.00113685]
[1641874113098,0.00113685,3118.5,3118.2,0.461]
[1641874113292,0.00113685,3118.5,3118.3,3.79193611]
[1641874113492,0.00113685,3118.5,3118.3,0.461]
[1641874117249,0.00113685,3118.5,3118.4,0.0095313]
[1641874119847,2.72734113,3118.5,3118.4,0.0095313]
[1641874120502,0.00113685,3118.5,3118.4,0.0095313]
[1641874121100,2.72734113,3118.5,3118.4,0.0095313]
[1641874121701,0.00113685,3118.5,3118.4,0.0095313]
[1641874122301,0.00113685,3118.5,3118.3,0.461]
[1641874122302,0.00113685,3118.5,3118.3,0.4705313]
[1641874123301,0.00113685,3118.5,3118.3,0.0095313]
[1641874124347,3.75231744,3118.4,3118.3,0.0095313]
[1641874124547,5.0390349,3118.4,3118.3,0.0095313]
[1641874124948,7.76546035,3118.4,3118.3,0.0095313]
[1641874125548,7.84563035,3118.4,3118.3,0.0095313]
[1641874127350,7.84563035,3118.4,3118.1,0.01067289]
[1641874127997,2.72642545,3118.3,3118.1,0.01067289]
[1641874128196,2.80659545,3118.3,3118.1,0.01067289]
[1641874129202,2.72642545,3118.2,3118.1,0.01067289]
[1641874130801,5.52642545,3118.2,3118.1,0.01067289]
[1641874131005,6.52642545,3118.2,3118.1,0.01067289]
[1641874131202,7.82299545,3118.2,3118.1,0.01067289]
[1641874134657,8.12299545,3118.2,3118.1,0.01067289]
[1641874134859,11.12299545,3118.2,3118.1,0.01067289]
[1641874135699,0.00942711,3118.1,3116.8,5.9141]
[1641874135999,0.80237,3117.9,3116.4,3.95191964]
[1641874136204,1.20849,3117.8,3116.9,0.00682108]
[1641874136398,5.45799,3117.8,3116.5,0.00909477]
[1641874136600,0.87269667,3117.0,3116.2,0.73774405]
[1641874136898,1.0,3117.7,3116.3,0.01023162]
[1641874136899,1.39833818,3116.8,3116.3,0.01023162]
[1641874138199,2.72642545,3116.7,3116.3,0.01023162]
[1641874138798,2.72642545,3116.7,3115.8,0.01307374]
[1641874139000,0.31803373,3116.6,3115.8,0.01307374]
[1641874139255,0.39824373,3116.6,3115.8,0.01307374]
[1641874139447,0.39824373,3116.6,3116.1,0.68195982]
[1641874139650,0.31803373,3116.6,3116.1,0.68195982]
[1641874139849,0.00397897,3116.5,3116.1,0.68195982]
[1641874140250,0.00341054,3116.4,3116.1,0.68195982]
[1641874140650,0.00284212,3116.3,3116.1,0.68195982]
[1641874141054,0.0022737,3116.2,3116.1,0.68195982]
[1641874141254,0.0022737,3116.2,3116.1,5.10283309]
[1641874141454,0.0022737,3116.2,3116.1,5.1150456]
[1641874141755,0.0022737,3116.2,3116.1,8.0650456]
[1641874141952,0.0022737,3116.2,3116.1,5.1150456]
[1641874142153,0.0022737,3116.2,3116.1,7.2171556]
[1641874142351,0.00480508,3116.2,3116.1,7.2171556]
[1641874142552,0.00480508,3116.2,3116.1,5.9171556]
[1641874142997,0.00480508,3116.2,3116.1,6.2171556]
[1641874143196,0.00480508,3116.2,3116.1,7.2171556]
[1641874143399,0.00480508,3116.2,3116.1,5.9171556]
[1641874143599,0.00480508,3116.2,3116.1,5.1150456]
[1641874144001,0.47597195,3117.8,3116.4,0.80205]
[1641874144202,0.47597195,3117.8,3116.8,0.8140085]
[1641874144406,0.0073895,3117.5,3116.9,0.461]
[1641874144598,0.0073895,3117.5,3116.9,0.761]
[1641874144799,0.00682108,3117.4,3116.9,0.761]
[1641874145201,0.00625265,3117.3,3116.9,0.761]
[1641874145401,0.00625265,3117.3,3116.9,0.461]
[1641874145600,0.00568423,3117.2,3116.9,0.461]
[1641874145804,0.00568423,3117.2,3117.1,0.78530184]
[1641874146001,0.08019,3117.7,3117.1,0.78530184]
[1641874146202,1.4125812,3117.8,3117.1,0.78530184]
[1641874146401,0.00795792,3117.6,3117.1,0.78530184]
[1641874146844,0.0073895,3117.5,3117.1,0.78530184]
[1641874147246,0.08019,3117.7,3117.1,0.78530184]
[1641874147247,0.00682108,3117.4,3117.1,0.79227576]
[1641874147645,0.00625265,3117.3,3117.1,0.79227576]
[1641874148047,0.00568423,3117.2,3117.1,0.79227576]
[1641874148246,0.00568423,3117.2,3117.1,4.55341759]
[1641874148645,0.00568423,3117.2,3117.1,0.79227576]
[1641874150045,0.00568423,3117.2,3117.1,4.53926649]
[1641874150896,0.00568423,3117.2,3117.1,0.79227576]
[1641874151198,0.00568423,3117.2,3117.1,0.00697392]
[1641874151799,0.00568423,3117.2,3117.1,3.20697392]
[1641874161117,0.08587423,3117.2,3117.1,3.20697392]
[1641874161519,3.73587423,3117.2,3117.1,3.20697392]
[1641874161747,4.48384024,3117.2,3117.1,3.20697392]
[1641874161951,0.00568423,3117.2,3117.1,3.20697392]
[1641874163451,0.00568423,3117.2,3117.1,6.66797392]
[1641874163848,0.00568423,3117.2,3117.1,3.66797392]
[1641874169252,2.73353692,3117.2,3117.1,3.66797392]
[1641874169850,0.00568423,3117.2,3117.1,3.66797392]
[1641874170451,3.50568423,3117.2,3117.1,3.66797392]
[1641874170650,7.11467167,3117.2,3117.1,3.66797392]
[1641874170853,7.11467167,3117.2,3117.1,3.20697392]
[1641874171055,8.19486167,3117.2,3117.1,3.20697392]
[1641874171252,8.49486167,3117.2,3117.1,3.20697392]
[1641874172553,7.61372692,3117.2,3117.1,7.392e-05]
[1641874172755,7.91372692,3117.2,3117.1,7.392e-05]
[1641874173805,6.23353692,3117.2,3117.1,7.392e-05]
[1641874176758,7.31372692,3117.2,3117.1,7.392e-05]
[1641874177353,7.32075625,3117.2,3117.1,0.00939077]
[1641874177754,8.94835358,3117.2,3117.1,0.00939077]
[1641874178354,8.94266935,3117.2,3117.1,0.00939077]
[1641874178759,7.31507202,3117.2,3117.1,0.00939077]
[1641874180907,7.61507202,3117.2,3117.1,0.00939077]
[1641874181706,10.05679906,3117.2,3117.1,0.00939077]
[1641874181905,0.01878153,3116.9,3115.8,0.461]
[1641874182105,0.08021,3116.8,3115.8,0.461]
[1641874182305,0.08021,3116.8,3115.9,0.00170527]
[1641874182505,0.08021,3116.8,3115.9,3.96583403]
[1641874182907,0.08021,3116.8,3116.0,0.00113685]
[1641874183110,2.72785269,3116.7,3116.0,0.00113685]
[1641874183506,1.24779584,3116.6,3116.0,0.00113685]
[1641874183906,0.00170527,3116.5,3116.0,0.00113685]
[1641874184188,0.00113684,3116.4,3116.0,0.00113685]
[1641874184578,0.00170527,3116.5,3116.0,0.00113685]
[1641874184877,0.00113684,3116.4,3116.0,0.00113685]
[1641874187281,0.00762793,3116.4,3116.2,0.00782102]
[1641874189805,0.00762793,3116.4,3116.2,0.89343574]
[1641874190605,0.00762793,3116.4,3116.2,0.00782102]
[1641874191859,2.7287558,3116.3,3116.2,0.00782102]
[1641874192258,2.7287558,3116.3,3116.0,0.00895154]
[1641874192460,2.7287558,3116.3,3116.1,0.461]
[1641874192659,2.7287558,3116.3,3116.2,6.60127646]
[1641874192860,2.7287558,3116.3,3116.2,7.36227646]
[1641874193058,0.00113684,3116.4,3116.3,5.9]
[1641874193257,0.00113684,3116.4,3116.3,10.03802697]
[1641874193460,0.00113684,3116.4,3116.3,11.90046603]
[1641874193858,0.00113684,3116.4,3116.3,10.90046603]
[1641874194359,0.00113684,3116.4,3116.3,5.08067603]
[1641874197407,0.00761332,3116.4,3116.3,5.08849072]
[1641874201862,0.00761332,3116.4,3116.3,1.41146375]
[1641874202466,0.00113684,3116.4,3116.3,1.41146375]
[1641874203903,0.00113684,3116.4,3116.3,1.33125375]
[1641874204805,0.00113684,3116.4,3116.3,4.93967908]
[1641874205005,0.00113684,3116.4,3116.3,1.33125375]
[1641874206107,0.00113684,3116.4,3116.3,4.99803181]
[1641874206307,0.00113684,3116.4,3116.3,1.33125375]
[1641874206853,0.00113684,3116.4,3116.3,4.43125375]
[1641874207255,0.00113684,3116.4,3116.3,8.02702126]
[1641874207856,0.00113684,3116.4,3116.3,4.43125375]
[1641874208057,0.00113684,3116.4,3116.3,7.99971321]
[1641874208356,0.00113684,3116.4,3116.3,8.0099776]
[1641874208558,0.00113684,3116.4,3116.3,4.9099776]
[1641874208757,0.00113684,3116.4,3116.3,1.33125375]
[1641874210405,0.00113684,3116.4,3116.3,4.91455095]
[1641874210609,0.00113684,3116.4,3116.3,4.9080803]
[1641874211304,0.00113684,3116.4,3116.3,1.33125375]
[1641874212303,0.00801111,3116.4,3116.3,1.33125375]
[1641874213506,2.73636766,3116.4,3116.3,1.33125375]
[1641874214359,0.00801111,3116.4,3116.3,1.33125375]
[1641874215055,2.73523082,3116.4,3116.3,1.33125375]
[1641874215555,0.00687427,3116.4,3116.3,0.46881469]
[1641874216360,2.73523082,3116.4,3116.3,0.46881469]
[1641874219408,2.73523082,3116.4,3116.3,0.00781469]
[1641874219908,5.23523082,3116.4,3116.3,0.00781469]
[1641874220310,6.03943756,3116.4,3116.3,0.00781469]
[1641874220609,6.11964756,3116.4,3116.3,0.00781469]
[1641874222266,6.11964756,3116.4,3115.7,0.46881469]
[1641874222462,0.08021,3116.3,3115.7,0.46881469]
[1641874222664,0.08021,3116.3,3115.8,0.0022737]
[1641874223066,1.52121976,3116.2,3115.8,0.0022737]
[1641874223266,4.24957631,3116.2,3115.8,0.0022737]
[1641874224065,2.72835655,3116.1,3115.8,0.0022737]
[1641874224467,0.8091942,3115.9,3115.8,0.0022737]
[1641874225709,3.53755075,3115.9,3115.8,0.0022737]
[1641874226506,0.8091942,3115.9,3115.8,0.0022737]
[1641874227106,3.53755075,3115.9,3115.8,0.0022737]
[1641874227308,3.62423398,3115.9,3115.8,0.01012005]
[1641874227510,4.92423398,3115.9,3115.8,0.01012005]
[1641874227710,10.32423398,3115.9,3115.8,0.01012005]
[1641874228109,11.95201032,3115.9,3115.8,0.01012005]
[1641874228708,12.44081032,3115.9,3115.8,0.01012005]
[1641874228907,12.47840126,3115.9,3115.8,0.01012005]
[1641874229362,7.32732391,3115.8,3115.3,3.005e-05]
[1641874229558,0.08024,3115.7,3115.3,3.005e-05]
[1641874229761,0.08024,3115.7,3115.4,0.00227369]
[1641874230360,0.08024,3115.7,3115.3,0.00284212]
[1641874230963,2.72835655,3115.6,3115.3,0.00284212]
[1641874231165,0.08024,3115.5,3115.3,0.00284212]
[1641874231362,6.55245683,3115.4,3115.3,0.00284212]
[1641874231562,6.63269683,3115.4,3115.3,0.00284212]
[1641874232664,9.36105338,3115.4,3115.3,0.00284212]
[1641874233403,8.65859655,3115.4,3115.3,0.00284212]
[1641874234903,9.65859655,3115.4,3115.3,0.00284212]
[1641874236509,10.58597681,3115.4,3115.3,0.00284212]
[1641874237355,10.58597681,3115.4,3115.3,0.01269758]
[1641874237555,5.85,3115.3,3115.2,0.56941749]
[1641874237758,6.85,3115.3,3115.2,0.56089113]
[1641874237962,7.15,3115.3,3115.2,0.56089113]
[1641874238156,7.44151548,3115.3,3115.2,0.56089113]
[1641874238558,11.00829004,3115.3,3115.2,0.56089113]
[1641874240160,5.85,3115.2,3113.7,3.67916662]
[1641874240405,5.85,3115.2,3113.6,5.8383]
[1641874240406,4.15923606,3115.1,3113.6,6.0883]
[1641874240611,1.3,3115.1,3113.8,0.00852635]
[1641874240806,0.08027,3115.0,3113.8,0.00852635]
[1641874241207,1.48431728,3114.7,3113.8,0.00852635]
[1641874241408,1.48431728,3114.7,3114.0,0.74439858]
[1641874241807,1.48431728,3114.7,3114.1,0.00682108]
[1641874242209,1.08027,3115.0,3114.1,0.00682108]
[1641874242408,0.08027,3115.0,3114.1,0.00682108]
[1641874243213,0.08027,3115.0,3114.5,0.8232663]
[1641874243411,2.72971261,3114.9,3114.5,0.8232663]
[1641874243611,2.72971261,3114.9,3114.6,0.00397896]
[1641874244256,2.72971261,3114.9,3114.1,0.00682108]
[1641874244456,1.2086,3114.8,3114.1,0.00682108]
[1641874244859,1.15535481,3114.6,3114.1,0.00682108]
[1641874245055,1.2086,3114.8,3114.3,0.69527845]
[1641874245255,1.28885,3114.8,3114.3,0.69527845]
[1641874245554,1.28885,3114.8,3114.4,0.00511581]
[1641874245760,1.2086,3114.8,3114.4,0.00511581]
[1641874247157,0.08025,3115.0,3114.4,0.00511581]
[1641874247358,0.00674422,3114.7,3114.6,0.01491627]
[1641874247561,7.02812337,3114.7,3114.6,0.01491627]
[1641874247758,7.02812337,3114.7,3114.6,0.01889523]
[1641874248006,7.10837337,3114.7,3114.6,0.01889523]
[1641874248207,7.02812337,3114.7,3114.6,0.01889523]
[1641874248511,7.10837337,3114.7,3114.6,0.01889523]
[1641874248707,8.10837337,3114.7,3114.6,0.01889523]
[1641874248910,9.32287337,3114.7,3114.6,0.01889523]
[1641874249311,5.20274691,3114.7,3114.6,0.01889523]
[1641874249512,2.81686776,3114.7,3114.6,0.01889523]
[1641874249710,2.73661776,3114.7,3114.6,0.01889523]
[1641874249912,0.00674422,3114.7,3114.6,0.01889523]
[1641874252859,0.00674422,3114.7,3114.6,0.47989523]
[1641874255060,0.00674422,3114.7,3114.6,3.67989523]
[1641874255726,0.00674422,3114.7,3114.6,7.40209653]
[1641874255923,0.00674422,3114.7,3114.6,7.46210532]
[1641874256124,0.00674422,3114.7,3114.6,3.67989523]
[1641874256332,0.00674422,3114.7,3114.6,7.44250862]
[1641874256524,0.00674422,3114.7,3114.6,3.67989523]
[1641874257526,0.00674422,3114.7,3114.6,7.42663599]
[1641874257726,0.00674422,3114.7,3114.6,3.67989523]
[1641874259958,0.00674422,3114.7,3114.6,3.62989523]
[1641874266130,0.00674422,3114.7,3114.6,3.2]
[1641874267358,0.00674422,3114.7,3114.6,7.01232336]
[1641874267562,0.00674422,3114.7,3114.6,8.77332336]
[1641874267760,0.48445977,3115.4,3114.6,8.77332336]
[1641874267960,0.48445977,3115.4,3114.9,0.80251]
[1641874268158,0.00397896,3115.3,3115.0,4.1468341]
[1641874268559,0.00341054,3115.2,3115.0,4.1468341]
[1641874268757,0.00341054,3115.2,3115.0,0.461]
[1641874268957,0.00284212,3115.1,3115.0,4.2523804]
[1641874269163,0.00284212,3115.1,3115.0,0.461]
[1641874273016,0.00284212,3115.1,3114.9,0.3]
[1641874273419,0.00227369,3115.0,3114.6,3.661]
[1641874273631,0.00227369,3115.0,3114.6,3.2]
[1641874273815,1.08025,3115.6,3114.6,3.2]
[1641874273816,0.00170527,3114.9,3114.6,3.2]
[1641874274264,0.00113685,3114.8,3114.6,3.2]
[1641874274663,0.00227369,3115.0,3114.6,3.2]
[1641874275065,0.00170527,3114.9,3114.6,3.2]
[1641874275470,0.00113685,3114.8,3114.6,3.2]
[1641874275866,0.00170527,3114.9,3114.6,3.2]
[1641874276268,0.00113685,3114.8,3114.6,3.2]
[1641874276669,0.00170527,3114.9,3114.6,3.2]
[1641874277171,0.00113685,3114.8,3114.6,3.2]
[1641874279010,5.83025,3114.7,3114.6,3.2]
[1641874279815,7.3855258,3114.7,3114.6,3.2]
[1641874280010,8.3855258,3114.7,3114.6,3.2]
[1641874280211,11.11446089,3114.7,3114.6,3.2]
[1641874281764,10.81446089,3114.7,3114.6,3.2]
[1641874281966,3.80918509,3114.7,3114.6,3.2]
[1641874284763,5.06762915,3114.7,3114.6,3.2]
[1641874286309,3.80918509,3114.7,3114.6,3.2]
[1641874287110,3.80918509,3114.7,3114.6,4.00220197]
[1641874287311,3.72893509,3114.7,3114.6,4.00220197]
[1641874288116,3.72893509,3114.7,3114.6,3.2]
[1641874288317,8.3585806,3114.7,3114.6,3.2]
[1641874288513,8.4388306,3114.7,3114.6,3.2]
[1641874288912,4.40918509,3114.7,3114.6,3.2]
[1641874289159,8.20918509,3114.7,3114.6,3.2]
[1641874289360,8.50918509,3114.7,3114.6,3.2]
[1641874290166,8.20918509,3114.7,3114.6,3.2]
[1641874294915,8.12893509,3114.7,3114.6,3.2]
[1641874296515,12.26958451,3114.7,3114.6,3.15]
[1641874298364,8.16958451,3114.7,3114.6,3.15]
[1641874298563,4.02893509,3114.7,3114.6,3.15]
[1641874298868,7.02893509,3114.7,3114.6,3.15]
[1641874299064,11.14600177,3114.7,3114.6,2.7278883]
[1641874299466,7.02893509,3114.7,3114.6,2.7278883]
[1641874300712,7.02893509,3114.7,3114.6,2.39019894]
[1641874302110,7.10918509,3114.7,3114.6,2.39019894]
[1641874302509,7.10918509,3114.7,3114.6,2.32619894]
[1641874304190,0.803184,3114.4,3113.1,0.13819997]
[1641874304369,0.80326,3114.2,3113.1,0.13819997]
[1641874304570,4.47348882,3114.1,3113.2,0.00795793]
[1641874304968,1.0,3114.0,3113.2,0.00795793]
[1641874305170,1.54363687,3113.4,3113.2,0.00795793]
[1641874305568,1.54363687,3113.4,3113.2,3.20795793]
[1641874305970,1.84363687,3113.4,3113.3,0.0073895]
[1641874306269,3.68243634,3113.4,3113.3,0.0073895]
[1641874306970,3.68243634,3113.4,3112.9,0.80177652]
[1641874307170,3.68243634,3113.4,3113.0,0.00909477]
[1641874307570,4.274184,3113.3,3113.0,0.00909477]
[1641874307770,4.274184,3113.3,3112.5,0.01193689]
[1641874308012,3.68243634,3113.4,3112.5,0.01193689]
[1641874308511,3.72129554,3113.4,3112.5,0.01193689]
[1641874308713,4.22815061,3113.3,3112.5,0.01193689]
[1641874308912,3.68243634,3113.4,3112.5,0.01193689]
[1641874308913,1.0,3113.2,3112.5,0.01193689]
[1641874309112,0.08031,3113.1,3112.5,0.01193689]
[1641874309311,0.08031,3113.2,3112.5,0.01193689]
[1641874310011,0.7794451,3112.9,3112.5,0.01193689]
[1641874310211,0.08031,3112.8,3112.5,0.01193689]
[1641874310611,4.97722533,3112.6,3112.5,0.01193689]
[1641874310816,5.27722533,3112.6,3112.5,0.01193689]
[1641874311018,6.35753533,3112.6,3112.5,0.01193689]
[1641874313464,0.40753533,3112.6,3112.5,0.01193689]
[1641874313670,0.08031,3113.0,3112.5,0.01193689]
[1641874313867,1.1379,3113.2,3112.5,0.01193689]
[1641874314865,1.4379,3113.2,3112.5,0.01193689]
[1641874315267,1.4379,3113.2,3113.0,0.88147875]
[1641874315517,0.3,3113.2,3112.5,0.01193689]
[1641874315719,1.3,3113.3,3113.1,0.00852635]
[1641874315917,1.3,3113.3,3112.5,0.01193689]
[1641874315918,1.38029,3113.3,3112.5,0.01193689]
[1641874316820,1.38029,3113.3,3112.9,0.78397154]
[1641874317318,0.38029,3113.3,3113.0,0.00909477]
[1641874317617,0.3,3113.3,3113.0,0.00909477]
[1641874318020,1.13879947,3113.4,3113.0,0.00909477]
[1641874318221,1.50145535,3113.3,3113.0,0.00909477]
[1641874318621,2.50145535,3113.3,3113.0,0.00909477]
[1641874318817,1.50145535,3113.3,3113.0,0.00909477]
[1641874319021,1.0,3113.2,3113.0,0.00909477]
[1641874319260,1.3,3113.2,3113.0,0.00909477]
[1641874319463,0.08029,3113.3,3113.0,0.00909477]
[1641874319663,0.38029,3113.4,3113.0,0.00909477]
[1641874319859,0.08029,3113.5,3113.0,0.00909477]
[1641874320462,1.33923513,3113.3,3113.0,0.00909477]
[1641874320660,1.63923513,3113.3,3112.8,0.01023162]
[1641874320859,1.63923513,3113.3,3112.7,0.01080005]
[1641874321563,1.63923513,3113.3,3112.7,0.73744034]
[1641874321863,2.73098994,3113.2,3112.7,0.73744034]
[1641874322060,2.73098994,3113.2,3112.8,0.01023162]
[1641874325013,2.73098994,3113.2,3112.7,0.01080005]
[1641874327461,1.67398018,3113.3,3112.7,0.01080005]
[1641874327661,1.63923513,3113.3,3112.7,0.01080005]
[1641874327862,0.08029,3113.2,3112.7,0.01080005]
[1641874328060,0.08029,3113.2,3112.5,0.01193689]
[1641874328863,0.08029,3113.2,3112.6,0.74552528]
[1641874329162,2.73107755,3113.1,3112.7,0.01080005]
[1641874329363,0.08031,3113.0,3112.7,0.01080005]
[1641874331012,0.08031,3113.2,3112.7,0.01080005]
[1641874335862,0.08031,3113.2,3112.5,0.01193689]
[1641874336062,2.73110288,3113.1,3112.5,0.01193689]
[1641874336364,0.08031,3113.0,3112.5,0.01193689]
[1641874336560,1.08031,3113.0,3112.5,0.01193689]
[1641874336764,0.08031,3113.0,3112.5,0.01193689]
[1641874336961,1.08031,3113.0,3112.5,0.01193689]
[1641874337562,0.08031,3113.0,3112.5,0.01193689]
[1641874338019,2.73122583,3112.9,3112.5,0.01193689]
[1641874338621,3.03122583,3112.9,3112.5,0.01193689]
[1641874339519,0.38031,3113.0,3112.5,0.01193689]
[1641874339720,0.08031,3113.1,3112.5,0.01193689]
[1641874340824,2.73118387,3113.0,3112.5,0.01193689]
[1641874341023,3.03118387,3113.0,3112.5,0.01193689]
[1641874342261,2.73118387,3112.9,3112.5,0.01193689]
[1641874342961,1.3,3112.8,3112.5,0.01193689]
[1641874343164,1.38031,3112.8,3112.5,0.01193689]
[1641874343865,2.73118387,3112.7,3112.5,0.01193689]
[1641874344665,3.03118387,3112.7,3112.5,0.01193689]
[1641874344865,2.73118387,3112.7,3112.5,0.01193689]
[1641874347518,2.73118387,3112.7,3112.5,3.58256723]